Cogmind - Beta 16 --- EXPLORER MODE // 2025.12.23 @ 22:20:30 Player: Mike Result: Destroyed by G-47 Trooper with Particle Gun Performance ------------- Evolutions (1) 500 Regions Visited (2) 400 Robots Destroyed (42) 210 Value Destroyed (1127) 1127 Prototype IDs (2) 40 Alien Tech Used (0) 0 Bonus (0) 0 TOTAL SCORE: 2277 Bonus ------- None Cogmind --------- Core Integrity 0/400 Matter 288/300 Energy 274/275 System Corruption 0% Temperature Cool (9) Movement Flying (195) Ox2 Location -9/Materials Parts ------- > --- POWER (1) -------- Deuterium Engine > --- PROPULSION (4) --- VTOL Module > --- UTILITY (3) ------ Visual Processing Unit > --- WEAPON (2) ------- Light Assault Rifle > --- INVENTORY (5) ---- Deuterium Engine Light Nuclear Core Small Storage Unit Improved Signal Interpreter ECM Suite Peak State ------------ > --- POWER ------------ Light Nuclear Core > --- PROPULSION ------- Flight Unit Flight Unit Flight Unit Flight Unit > --- UTILITY ---------- Small Storage Unit Improved Terrain Scanner Seismic Detector > --- WEAPON ----------- Light Assault Rifle Light Cannon > --- INVENTORY -------- Light Ion Engine Deuterium Engine Flight Unit Flight Unit Visual Processing Unit ECM Suite Light Assault Rifle [Rating: 15] Favorites ----------- Power Light Ion Engine Engine Light Ion Engine Power Core Light Nuclear Core Propulsion Flight Unit Leg Aluminum Leg Flight Unit Flight Unit Utility Seismic Detector Device Seismic Detector Storage Small Storage Unit Processor Visual Processing Unit Weapon Light Assault Rifle Ballistic Gun Light Assault Rifle Ballistic Cannon Light Cannon Build | -11 -10 -9 ------- Run | Yrd Mat Mat Slots Evolved 3 | . 1 2 Power . | . . . Propulsion 2 | . 1 1 Utility 1 | . . 1 Weapon . | . . . Parts Attached 29 | 10 6 13 Power 6 | 2 . 4 Engine 5 | 2 . 3 Core 1 | . . 1 Reactor . | . . . Propulsion 12 | 2 5 5 Treads . | . . . Leg 3 | 2 1 . Wheel . | . . . Hover . | . . . Flight 9 | . 4 5 Utility 6 | 4 . 2 Device 2 | 2 . . Storage 1 | . . 1 Processor 3 | 2 . 1 Hackware . | . . . Protection . | . . . Artifact . | . . . Weapon 5 | 2 1 2 Energy Gun . | . . . Energy Cannon . | . . . Ballistic Gun 3 | 2 . 1 Ballistic Cannon 2 | . 1 1 Launcher . | . . . Special Weapon . | . . . Impact Weapon . | . . . Slashing Weapon . | . . . Piercing Weapon . | . . . Special Melee Weapon . | . . . Unidentified Prototypes . | . . . Parts Lost 13 | . . 13 Power 1 | . . 1 Propulsion 7 | . . 7 Utility 3 | . . 3 Weapon 2 | . . 2 Highest Loss Streak 8 | . . 8 To Critical Strikes . | . . . Average Backups 4 | 1 3 4 Power 1 | . 1 1 Propulsion 1 | . 2 . Utility 1 | . . 2 Weapon . | . . . Tool/Special . | . . . Unused Backups 6 | . 2 4 Power . | . . . Propulsion 2 | . 2 . Utility 4 | . . 4 Weapon . | . . . Tool/Special . | . . . Average Slot Usage (%) 71 | . 97 60 Engine 10 | . 12 9 Leg 8 | . 29 . Flight 16 | . 5 21 Device 11 | . 25 6 Storage 2 | . . 3 Processor 2 | . . 3 Ballistic Gun 13 | . 23 10 Ballistic Cannon 4 | . 1 6 Peak Build Rating 15 | 9 10 15 Average Rating 9 | 7 9 9 On Entrance 6 | . 9 10 Avg Prop Armor Cover (%) 3 | . . 3 Naked Turns . | . . . Heaviest Build 16 | 7 9 16 Greatest Support 30 | 20 30 16 Greatest Overweight (x) 4 | 1 . 4 Average Overweight (x) . | . . 1 Largest Inventory Capacity 8 | 5 5 8 Average Capacity 5 | 5 5 5 Most Carried 8 | 2 5 8 Average Carried 4 | 1 3 4 Final Capacity 5 | 5 5 5 Final Carried 5 | 1 5 5 Class Distribution -------------------- 83% | Hacker-Mutant 13% | Scavenger-Mutant Dominant Class ---------------- Hacker-Mutant | -10/Materials Hacker-Mutant | -9/Materials Resources | -11 -10 -9 ----------- Run | Yrd Mat Mat Matter Collected 933 | 344 126 463 Remotely . | . . . Salvage Created 1298 | 255 238 805 Parts 91 | 23 14 54 Haulers Intercepted . | . . . Recyclers Shooed 1 | . . 1 Parts Field Recycled . | . . . Retrieved Matter . | . . . Parts Self-Destructed . | . . . Prevented . | . . . Parts Restored . | . . . Kills | -11 -10 -9 ------- Run | Yrd Mat Mat Combat Hostiles Destroyed 30 | . 8 22 Guns 20 | . 7 13 Cannons 10 | . 1 9 Classes Destroyed 8 | 3 3 2 Worker 2 | 2 . . Tunneler 6 | 6 . . Recycler 1 | 1 . . Watcher 3 | . 1 2 Swarmer 5 | . 3 2 Grunt 17 | . 5 12 Duelist 1 | . . 1 Sentry 7 | . . 7 Best Kill Streak 3 | 2 2 3 Combat Bots Only 3 | . 2 3 Max Kills in Single Turn 1 | 1 1 1 Gunslinging . | . . . Exploded . | . . . Melee . | . . . Uniques/NPCs Destroyed . | . . . Combat | -11 -10 -9 -------- Run | Yrd Mat Mat Hostile Shots Fired 240 | . 31 209 Missed 77 | . 12 65 Hits 163 | . 19 144 Melee 8 | . . 8 Projectile 155 | . 19 136 Critical Strikes 15 | . . 15 Damage Taken 1440 | . 121 1319 Core 434 | . 24 410 Absorbed by Shields . | . . . Ignored by Resistances 891 | . 81 810 Core Remaining (%) 95 | 100 90 . Volleys Fired 181 | 22 27 132 Largest 2 | 2 2 2 Hottest 50 | 40 50 50 Shots Fired 294 | 44 54 196 Gun 221 | 44 50 127 Cannon 73 | . 4 69 Launcher . | . . . Special . | . . . Kinetic 294 | 44 54 196 Thermal . | . . . Explosive . | . . . Electromagnetic . | . . . Robot Hit Streak 35 | 13 15 35 Robot Miss Streak 2 | 1 1 2 Penetration Max . | . . . Secondary Targets . | . . . Shots Hit Robots 254 | 36 43 175 Core Hits 90 | 16 18 56 Critical Kills 1 | . . 1 Critical Parts Destroyed 2 | . . 2 Critical Strikes 8 | . . 8 Destroy 4 | . . 4 Blast 4 | . . 4 Melee Attacks . | . . . Impact . | . . . Slashing . | . . . Piercing . | . . . Sneak Attacks . | . . . Combat Hostiles . | . . . Follow-up Attacks . | . . . Damage Inflicted 2645 | 295 370 1980 Guns 1567 | 295 319 953 Cannons 1078 | . 51 1027 Explosions . | . . . Melee . | . . . Ramming . | . . . Kinetic 2645 | 295 370 1980 Thermal . | . . . Explosive . | . . . Electromagnetic . | . . . Impact . | . . . Slashing . | . . . Piercing . | . . . Highest Corruption 1 | . 1 . Average Corruption 1 | . 1 . Corruption Purged . | . . . Corruption Blocked . | . . . Overload Shots . | . . . Overflow Damage . | . . . Projectiles . | . . . Explosions . | . . . Melee . | . . . Knockbacks 12 | . 1 11 Impact . | . . . Kinetic 12 | . 1 11 Secondary . | . . . Self-Inflicted Damage . | . . . Shots . | . . . Rammed 1 | . . 1 Targets Rammed 1 | . . 1 Kicked . | . . . Crushed . | . . . Highest Temperature 83 | . 49 83 Average Temperature 17 | . 13 18 Received Heat Transfer 951 | . 72 879 Siege Activations . | . . . Martial Activations . | . . . Shielding Activations . | . . . Robots Disrupted . | . . . Combat Hostiles . | . . . Robots Corrupted . | . . . Combat Hostiles . | . . . Parts Fried . | . . . Impact Corruptions . | . . . Robots Melted . | . . . Combat Hostiles . | . . . Parts Melted . | . . . Heat Transferred . | . . . Parts Sabotaged . | . . . Parts Stolen . | . . . Parts Stripped . | . . . Power Chain Reactions . | . . . Alert | -11 -10 -9 ------- Run | Yrd Mat Mat Maximum Alert Level . | . . . Low Security (%) 100 | 100 100 100 Level 1 . | . . . Level 2 . | . . . Level 3 . | . . . Level 4 . | . . . Level 5 . | . . . High Security . | . . . Max Security . | . . . Peak Influence 71 | 10 45 71 Initial 6 | . . 6 Average 7 | 2 5 8 Influence Increases 970 | 45 242 683 Destroy 0b10 Robot/C 600 | . 160 440 Destroy 0b10 Robot/NC 60 | 45 5 10 Destroy Leader 166 | . 32 134 Successful Hack 22 | . 14 8 Destroy Structure 2 | . 1 1 Partial Spotted 30 | . . 30 Lose Combat Pursuer 90 | . 30 60 Influence Decreases 970 | 45 221 704 Entered New Map 15 | . . 15 Time Decay 907 | 45 221 641 Lost Part 48 | . . 48 Squads Dispatched 2 | . . 2 Investigation 1 | . . 1 Extermination . | . . . Reinforcement 1 | . . 1 Assault . | . . . Garrison . | . . . Intercept . | . . . Searches Triggered . | . . . Construction Impeded . | . . . Haulers Reinforced . | . . . Active Scanning Responses . | . . . Cargo Convoy Interrupts . | . . . Stealth | -11 -10 -9 --------- Run | Yrd Mat Mat Distress Signals 2 | . . 2 Communications Jammed . | . . . Distress Signals . | . . . Times Spotted 48 | . 14 34 Peak Tracking Total 5 | . 3 5 Tactical Retreats 6 | . 2 4 Traps | -11 -10 -9 ------- Run | Yrd Mat Mat Traps Triggered 6 | . 2 4 Indirectly . | . . . Trap Hack Attempts . | . . . Triggered . | . . . Disarmed . | . . . Reprogrammed . | . . . Reused . | . . . Traps Extracted . | . . . Installed . | . . . Triggered . | . . . Machines | -11 -10 -9 ---------- Run | Yrd Mat Mat Machines Disabled . | . . . Max in Single Turn . | . . . Machines Repaired . | . . . Machines Dismantled . | . . . Machines Sabotaged . | . . . Overloaded Fab Kills . | . . . Hacking | -11 -10 -9 --------- Run | Yrd Mat Mat Machines Accessed 12 | . 7 5 Terminals 10 | . 6 4 Fabricators . | . . . Repair Stations . | . . . Recycling Units 1 | . 1 . Scanalyzers 1 | . . 1 Garrison Access . | . . . Total Hacks 34 | . 13 21 Successful 27 | . 10 17 Failed 7 | . 3 4 Catastrophic . | . . . Database Lockouts . | . . . Manual . | . . . Terminals 22 | . 12 10 Fabricators . | . . . Repair Stations . | . . . Recycling Units 1 | . 1 . Scanalyzers 11 | . . 11 Garrison Access . | . . . Terminal Hacks 15 | . 9 6 Prototype ID Bank 1 | . . 1 Emergency Access Points 2 | . 1 1 Repair Station Index 1 | . 1 . Locate Traps 1 | . 1 . Dispatch Records 3 | . 2 1 Maintenance Status 1 | . 1 . Transport Status 1 | . . 1 Investigation Status 1 | . 1 . Hauler Manifests 3 | . 1 2 Registered Components 1 | . 1 . Fabricator Hacks . | . . . Repair Station Hacks . | . . . Recycling Unit Hacks 1 | . 1 . Report Inventory 1 | . 1 . Scanalyzer 11 | . . 11 Insert Component 2 | . . 2 Analyze 5 | . . 5 Retrieve Study 4 | . . 4 Garrison Access Hacks . | . . . Unauthorized Hacks . | . . . Terminals . | . . . Fabricators . | . . . Repair Stations . | . . . Recycling Units . | . . . Scanalyzers . | . . . Garrison Access . | . . . Data Cores Recovered . | . . . Used . | . . . Hacking Detections 7 | . 3 4 Full Trace Events 2 | . . 2 Feedback Events . | . . . Feedback Blocked . | . . . Robot Schematics Acquired . | . . . Robots Built . | . . . Authchips . | . . . Time . | . . . Total Robot Build Rating . | . . . Part Schematics Acquired 2 | . . 2 Parts Built . | . . . Authchips . | . . . Time . | . . . Total Part Build Rating . | . . . Part Studies Acquired 3 | . . 3 Parts Repaired . | . . . Time . | . . . Parts Recycled . | . . . Recycled Matter . | . . . Retrieved Matter . | . . . Retrieved Components . | . . . Parts Scanalyzed 2 | . . 2 Part Schematics Acquired 2 | . . 2 Parts Damaged . | . . . Bothacking | -11 -10 -9 ------------ Run | Yrd Mat Mat Used RIF Installer . | . . . Robots Hacked . | . . . Non-combat . | . . . Combat . | . . . Robot Hacks Applied . | . . . Relay Couplers Released . | . . . Fabnet Peak Effective % . | . . . Robots Rewired . | . . . Allies Hacked . | . . . Hacks Repelled . | . . . Allies | -11 -10 -9 -------- Run | Yrd Mat Mat Total Allies . | . . . Largest Group . | . . . Highest-Rated Group . | . . . Highest-Rated Ally . | . . . Total Orders . | . . . Ally Attacks . | . . . Total Damage . | . . . Kills . | . . . Allies Corrupted . | . . . Allies Melted . | . . . Intel | -11 -10 -9 ------- Run | Yrd Mat Mat Active Infowar (turns) 2749 | 170 949 1630 Optics 903 | . . 903 Terrain 1811 | 148 949 714 Seismic 1846 | 170 949 727 Robot Analysis Total . | . . . Derelict Logs Recovered . | . . . Drone Launches . | . . . Drone Recoveries . | . . . Exploration | -11 -10 -9 ------------- Run | Yrd Mat Mat Turns Passed 3471 | 257 949 2265 Spaces Moved 2592 | 153 954 1485 Core 119 | 6 . 113 Treads . | . . . Legs 751 | 147 604 . Wheels . | . . . Hover . | . . . Flight 1722 | . 350 1372 Fastest Speed 31 | 50 34 31 Average Speed 110 | 117 88 124 Slowest Speed 275 | 120 120 275 Overloaded Moves . | . . . Propulsion Burnouts . | . . . Robots Hopped 6 | . 4 2 Potential Cave-ins . | . . . Cave-ins Triggered . | . . . Exploration Rate (%) 58 | 10 93 72 Regions Visited 2 Branch Regions . Pre-discovered Areas . | . . . Known Exits Taken 2 | 1 1 . Unknown Exits Taken . | . . . Scrap Searched . | . . . Spaces Dug . | . . . Terrain Destroyed . | . . . Melee . | . . . Projectile . | . . . AOE . | . . . Terrain Rammed . | . . . Walls Destroyed . | . . . Machines Disabled . | . . . Actions | -11 -10 -9 --------- Run | Yrd Mat Mat Total 2931 | 192 1008 1731 Wait 102 | . 12 90 Move 2579 | 152 946 1481 Hop 5 | . 3 2 Pick Up 25 | 7 9 9 Fast Attach 11 | 4 2 5 Attach 11 | 3 2 6 Detach . | . . . Swap 8 | 3 2 3 Drop 8 | 1 5 2 Fire 181 | 22 27 132 Melee . | . . . Ram 1 | . . 1 Kick . | . . . Crush . | . . . Escape Stasis . | . . . Rewire . | . . . Trap . | . . . Miscellaneous . | . . . Route ------- -11/Scrapyard -10/Materials (discovered 5 exits: *Mat x3 / *Min x2) -9/Materials (discovered 5 exits: *Mat x2 / *Min / *Sto x2) History --------- Turn | Location | Event 15 | -11/Scrapyard | Identified exit to Materials 15 | -11/Scrapyard | Discovered exit to Materials (range 15) 258 | -11/Scrapyard | Entered Materials 258 | -10/Materials | Evolved 1 slot: Propulsion x1 311 | -10/Materials | Build established: Hacker-Mutant 658 | -10/Materials | Identified exit to Mines 658 | -10/Materials | Discovered exit to Mines (range 16) 782 | -10/Materials | Identified exit to Materials 782 | -10/Materials | Discovered exit to Materials (range 16) 914 | -10/Materials | Discovered exit to Materials (range 7) 1103 | -10/Materials | Discovered exit to Mines (range 7) 1190 | -10/Materials | Discovered exit to Materials (range 12) 1207 | -10/Materials | Entered another Materials area 1207 | -9/Materials | Evolved 2 slots: Propulsion x1, Utility x1 1208 | -9/Materials | Identified exit to Storage 1208 | -9/Materials | Discovered exit to Storage (range 9) 1733 | -9/Materials | Build established: Scavenger-Mutant 1894 | -9/Materials | Identified exit to Materials 1894 | -9/Materials | Discovered exit to Materials (range 16) 2001 | -9/Materials | Lost 8 parts (4n3u1w) 2215 | -9/Materials | Build established: Hacker-Mutant 2246 | -9/Materials | Identified exit to Mines 2246 | -9/Materials | Discovered exit to Mines (range 16) 2315 | -9/Materials | Core integrity fell below 50% 2512 | -9/Materials | Discovered exit to Storage (range 15) 3002 | -9/Materials | Core integrity fell below 20% 3297 | -9/Materials | Discovered exit to Materials (range 7) 3472 | -9/Materials | Destroyed by G-47 Trooper with Particle Gun Last Messages --------------- 3x Imp. Medium Laser A-02 Transporter 1x Imp. Assault Rifle 5x Hvy. Ion Engine A-02 Transporter 4x Imp. Medium Laser 2x Imp. EM Shotgun A-02 Transporter 4x Imp. EM Shotgun 2x Hvy. Ion Engine A-02 Transporter 2x Imp. Medium Laser 3x Imp. EM Shotgun A-02 Transporter 4x Hvy. Ion Engine R-06 Scavenger collects Aluminum Leg. Acquired 1 matter. Acquired 9 matter. W-16 Scout distress signal alerts nearby ally. Critical hit (Burn: +37). Map ----- +----------------------------------------------------+ | "" # ######## """ T ## ######+######????????? | | # #??????# % " + #?# ! #??#?#???? | | /#### ##?????# % # #?# """ #????????? | | #?# ##########/###### ### """"" #??#?????? | | #?# ! # """"" #????????? | | #?# > + """"" #????????? | | ### # """ # ???????? | | #?# ###+################ # #????????? | | #####+#####????????#???#???# # #? ??????? | | # #? ????????????## ###########??? ????? | | # """"""" #???"??########### #? ??? ?#??????????? | | # """"""" #??????+ ##?????????????????? | | # """"""" #??"???# ##?????????????????? | | # """"""" # ???? # # ?"??????????????? | | # """"""" ##??#?## """ #? ??????????????? | | # #?????## """"" #?????????????????? | | # #???#??# """"" ###+##????????????? | | ###########?????## """"" #????????????? | | #?#############??# """ #??#?????????? | | ### #??# u #????????????? | | # #??# #????????????? | | # #??# #####g### +??????? | | T + """ """ #??# #???#%#?# ########### #??????? | | # """ """ #??# #???# #?# #??????????????????? | | # """ """ #?# #???# #?# #??????????????????? | | ## ##?# #???#@#?? #??????????????????? | | ###+##########??# #???# #?? #??????????????????? | | #??????????# #??##m#?? #??????????????????? | | ########???# #???#/### #??????????????????? | | # #???# #??? # #??????????????????? | | #### # #???# #??? k # ???????????????????? | | # %# #???# ##? [[!# ?#?????????????????? | | ! + """ #??## ## [[!#????????????????????? | | ! # """ ####% %# ] [[ #????????????????????? | | ! # """ + + #????????????????????? | | ! ########### ########????????????????????? | | # #?#???????## ##???????????????????????????? | | #### ############%#????????????????????????????? | | ???# % #????????????????????????????? | | #?## ########### #??????#?????????????????????? | | ??# #???# #????????????????????????????? | | ### #???# #????????????????????????????? | | #??## #??#?????????????????????????? | | #####+##???????????????????????????? | | """" """" # #?????? ?? ?????????????????? | | """" """" + """ #???? ??????????????????????? | | """" """" # R" #???????? ??????????????????? | | % # """ #???????????????????????????? | | + ##??????????????????????????? | | # ##### ####### #???????????????????????????? | +----------------------------------------------------+ Best States ------------- Heat Dissipation 28 Energy Generation 14 Energy Capacity 275 Matter Stores 300 Matter Capacity 300 Sight Range 18 Terrain Scan Range 16 Terrain Scan Density 10 Resistance: KI 35 Resistance: TH 35 Resistance: EX 35 Resistance: EM 35 Resistance: I 35 Resistance: S 35 Resistance: P 35 Evasion (%) 63 Targeting Accuracy 10 Offensive Hacking 20 Item Schematics ----------------- ECM Suite | -9/Materials | Scanalyzed Lgt. Nuclear Core | -9/Materials | Scanalyzed Robot Schematics ------------------ None Fabricated ------------ Nothing Repaired ---------- Nothing Studied --------- Flight Unit | -9/Materials | Hacked Lgt. Assault Rifle | -9/Materials | Hacked Lgt. Cannon | -9/Materials | Hacked Alien Tech Used ----------------- None Achievements -------------- None Challenges ------------ None Game ------ Seed IntegrityRainbowPendant Manual? 0 Play Time 00:42:45 Cumulative 7.3 hours Start 2025.12.23 @ 21:36:13 End 2025.12.23 @ 22:20:30 Sessions 1 Manual Loads 0 Difficulty Explorer Special Mode None Game No. 7 Rogue 0 Adventurer 0 Explorer 7 Win Type - Total 0 Types 0/0/0/0/0/0/0/0/0/0 Lore% 0 Gallery% 5 Achievement% 5 Wizard Run 0 Options --------- Layout 2 ASCII 0 Keyboard 0 Movement Arrows Keybinds 0 Fullscreen 1 Font 16/SmallcapsGlow Map View 25x24 Zoom Use 82% Tactical HUD 0 Map Filters NONE Filters NONE Steam SD RUN: 575e8656-fc8a-4e22-bcce-479618496091